[Event "49th Rilton Cup 2019-20"]
[Site "Stockholm"]
[Date "2019.12.29"]
[Round "3.1"]
[White "Thybo, Jesper Sondergaard"]
[Black "Quesada Perez, Luis Ernesto"]
[Result "1/2-1/2"]
[ECO "A88"]
[WhiteElo "2576"]
[BlackElo "2499"]
[Annotator "ChessBase"]
[PlyCount "61"]
[EventDate "2019.12.27"]
[EventType "swiss"]
[EventCountry "SWE"]
[SourceTitle "playchess.com"]
[Source "ChessBase"]
[SourceQuality "1"]
[TimeControl "40/5400+30:1800+30"]

1. d4 {[%emt 0:00:00]} f5 {[%emt 0:00:00]} 2. g3 {[%emt 0:01:35]} Nf6 {[%emt 0:00:00]} 3. Bg2 {[%emt 0:00:05]} g6 {[%emt 0:00:01]} 4. Nf3 {[%emt 0:00:13]} Bg7 {[%emt 0:00:06]} 5. O-O {[%emt 0:00:14]} O-O {[%emt 0:00:03]} 6. c4 {[%emt 0:00:20]} d6 {[%emt 0:00:06]} 7. Nc3 {[%emt 0:00:25]} c6 {[%emt 0:00:09]} 8. b3 {[%emt 0:00:38]} Na6 {[%emt 0:00:30]} 9. Bb2 {[%emt 0:01:13]} Qc7 {[%emt 0:02:30]} 10. d5 {[%emt 0:17:39]} e5 {[%emt 0:01:08]} 11. dxe6 {[%emt 0:00:41]} Bxe6 {[%emt 0:00:13]} 12. Qc2 {[%emt 0:07:43]} Kh8 {[%emt 0:06:19]} 13. Rad1 {[%emt 0:00:28]} Bg8 {[%emt 0:03:52]} 14. Rfe1 {[%emt 0:08:16]} d5 {[%emt 0:02:34]} 15. cxd5 {[%emt 0:02:27]} Nb4 {[%emt 0:00:08]} 16. Qc1 {[%emt 0:03:42]} Nbxd5 {[%emt 0:09:11]} 17. Nh4 {[%emt 0:03:32]} Nxc3 {[%emt 0:33:29]} 18. Bxc3 {[%emt 0:00:12]} Rae8 {[%emt 0:00:19]} 19. Rd3 {[%emt 0:03:48]} Ne4 {[%emt 0:01:31]} 20. Qh6 {[%emt 0:09:09]} Qf7 {[%emt 0:00:25]} 21. Bxe4 {[%emt 0:05:30]} fxe4 {[%emt 0:00:13]} 22. Bxg7+ {[%emt 0:00:21]} Qxg7 {[%emt 0:00:02]} 23. Qxg7+ {[%emt 0:00:08]} Kxg7 {[%emt 0:00:02]} 24. Rd7+ {[%emt 0:00:12]} Rf7 {[%emt 0:00:13]} 25. Red1 {[%emt 0:00:19]} Rfe7 {[%emt 0:06:39]} 26. Ng2 {[%emt 0:00:36]} a5 {[%emt 0:03:26]} 27. R1d2 {[%emt 0:04:38]} Bd5 {[%emt 0:06:22]} 28. Rd6 {[%emt 0:02:08]} Re6 {[%emt 0:00:24]} 29. Rd7+ {[%emt 0:02:02]} R6e7 {[%emt 0:05:18]} 30. Rd6 {[%emt 0:00:09]} Re6 {[%emt 0:00:21]} 31. Rd7+ {[%emt 0:00:17]} 1/2-1/2

[Event "49th Rilton Cup 2019-20"]
[Site "Stockholm"]
[Date "2019.12.29"]
[Round "3.3"]
[White "Koykka, Pekka"]
[Black "Moradiabadi, Elshan"]
[Result "0-1"]
[ECO "C45"]
[WhiteElo "2372"]
[BlackElo "2539"]
[Annotator "ChessBase"]
[PlyCount "124"]
[EventDate "2019.12.27"]
[EventType "swiss"]
[EventCountry "SWE"]
[SourceTitle "playchess.com"]
[Source "ChessBase"]
[SourceQuality "1"]
[TimeControl "40/5400+30:1800+30"]

1. e4 {[%emt 0:00:00]} e5 {[%emt 0:00:00]} 2. Nf3 {[%emt 0:00:00]} Nc6 {[%emt 0:00:00]} 3. d4 {[%emt 0:00:23]} exd4 {[%emt 0:00:00]} 4. Nxd4 {[%emt 0:00:08]} Bc5 {[%emt 0:00:13]} 5. Nxc6 {[%emt 0:05:46]} Qf6 {[%emt 0:00:02]} 6. Qf3 {[%emt 0:00:10]} dxc6 {[%emt 0:00:07]} 7. Nc3 {[%emt 0:04:19]} Be6 {[%emt 0:00:23]} 8. Bd3 {[%emt 0:07:00]} O-O-O {[%emt 0:06:50]} 9. Qg3 {[%emt 0:06:06]} Bd4 {[%emt 0:06:14]} 10. O-O {[%emt 0:09:57]} h5 {[%emt 0:10:14]} 11. h4 {[%emt 0:15:50]} Be5 {[%emt 0:00:29]} 12. Qg5 {[%emt 0:03:32]} c5 {[%emt 0:09:29]} 13. Be3 {[%emt 0:06:44]} Qxg5 {[%emt 0:01:55]} 14. hxg5 {[%emt 0:00:26]} Bd4 {[%emt 0:00:08]} 15. Bxd4 {[%emt 0:01:55]} cxd4 {[%emt 0:00:47]} 16. Ne2 {[%emt 0:00:29]} Ne7 {[%emt 0:01:59]} 17. Nf4 {[%emt 0:04:49]} Bd7 {[%emt 0:00:57]} 18. Be2 {[%emt 0:02:04]} h4 {[%emt 0:08:50]} 19. Rad1 {[%emt 0:01:18]} c5 {[%emt 0:02:39]} 20. Nd3 {[%emt 0:12:33]} b6 {[%emt 0:02:58]} 21. b4 {[%emt 0:04:25]} cxb4 {[%emt 0:05:15]} 22. Nxb4 {[%emt 0:00:09]} Be6 {[%emt 0:05:32]} 23. Ba6+ {[%emt 0:01:47]} Kc7 {[%emt 0:00:01]} 24. Rd2 {[%emt 0:04:12]} Nc6 {[%emt 0:09:08]} 25. a3 {[%emt 0:00:39]} h3 {[%emt 0:05:37]} 26. g3 {[%emt 0:04:37]} h2+ {[%emt 0:05:36]} 27. Kh1 {[%emt 0:00:05]} Bh3 {[%emt 0:00:02]} 28. Rc1 {[%emt 0:00:20]} Bg4 {[%emt 0:02:05]} 29. Be2 {[%emt 0:02:50]} Bxe2 {[%emt 0:00:08]} 30. Rxe2 {[%emt 0:00:02]} Nxb4 {[%emt 0:00:04]} 31. axb4 {[%emt 0:00:04]} Kc6 {[%emt 0:00:01]} 32. Rd2 {[%emt 0:02:33]} Kb5 {[%emt 0:01:50]} 33. Rb1 {[%emt 0:00:06]} Rd7 {[%emt 0:05:34]} 34. Rb3 {[%emt 0:00:10]} Kc4 {[%emt 0:01:09]} 35. f4 {[%emt 0:01:10]} f6 {[%emt 0:02:33]} 36. gxf6 gxf6 {[%emt 0:00:01]} 37. Rbd3 {[%emt 0:01:11]} Re8 {[%emt 0:01:59]} 38. Kxh2 {[%emt 0:00:30]} Rxe4 {[%emt 0:00:02]} 39. Kg2 {[%emt 0:00:30]} f5 {[%emt 0:02:54]} 40. Kf3 {[%emt 0:00:37]} Rde7 {[%emt 0:00:00]} 41. b5 {[%emt 0:13:23]} Re3+ {[%emt 0:05:55]} 42. Kf2 {[%emt 0:00:49]} Rxd3 {[%emt 0:01:23]} 43. Rxd3 {[%emt 0:00:50]} Rc7 {[%emt 0:03:51]} 44. Kf3 {[%emt 0:09:41]} Kxb5 {[%emt 0:00:25]} 45. g4 {[%emt 0:00:57]} fxg4+ {[%emt 0:01:35]} 46. Kxg4 {[%emt 0:00:10]} Rxc2 {[%emt 0:02:18]} 47. Rxd4 {[%emt 0:00:20]} Rg2+ {[%emt 0:00:50]} 48. Kf3 {[%emt 0:02:02]} Rg8 {[%emt 0:00:07]} 49. f5 {[%emt 0:00:39]} a5 {[%emt 0:00:42]} 50. f6 {[%emt 0:01:05]} Rf8 {[%emt 0:01:52]} 51. Rf4 {[%emt 0:00:06]} a4 {[%emt 0:00:03]} 52. Ke3 {[%emt 0:03:03]} a3 {[%emt 0:01:17]} 53. Kd3 {[%emt 0:03:25]} a2 {[%emt 0:00:56]} 54. Rf1 {[%emt 0:00:09]} Rxf6 {[%emt 0:01:21]} 55. Ra1 {[%emt 0:00:14]} Rf3+ {[%emt 0:00:01]} 56. Kc2 {[%emt 0:01:09]} Kb4 {[%emt 0:00:17]} 57. Rxa2 Rf2+ {[%emt 0:00:04]} 58. Kb1 {[%emt 0:00:36]} Rxa2 {[%emt 0:00:04]} 59. Kxa2 {[%emt 0:00:09]} Kc3 {[%emt 0:00:01]} 60. Ka3 {[%emt 0:00:50]} b5 {[%emt 0:00:06]} 61. Ka2 {[%emt 0:00:20]} b4 {[%emt 0:00:57]} 62. Kb1 {[%emt 0:00:42]} Kb3 {[%emt 0:00:05]} 0-1

[Event "49th Rilton Cup 2019-20"]
[Site "Stockholm"]
[Date "2019.12.29"]
[Round "3.5"]
[White "Hillarp Persson, Tiger"]
[Black "Ippolito, Dean"]
[Result "1-0"]
[ECO "E70"]
[WhiteElo "2537"]
[BlackElo "2356"]
[Annotator "ChessBase"]
[PlyCount "97"]
[EventDate "2019.12.27"]
[EventType "swiss"]
[EventCountry "SWE"]
[SourceTitle "playchess.com"]
[Source "ChessBase"]
[SourceQuality "1"]
[TimeControl "40/5400+30:1800+30"]

1. c4 {[%emt 0:00:00]} g6 {[%emt 0:00:00]} 2. Nc3 {[%emt 0:00:07]} Bg7 {[%emt 0:00:06]} 3. d4 {[%emt 0:00:33]} Nf6 {[%emt 0:00:11]} 4. e4 {[%emt 0:00:07]} d6 {[%emt 0:00:05]} 5. Nge2 {[%emt 0:00:24]} O-O {[%emt 0:00:48]} 6. Ng3 {[%emt 0:00:23]} c5 {[%emt 0:00:30]} 7. d5 {[%emt 0:00:07]} e6 {[%emt 0:00:40]} 8. Be2 {[%emt 0:00:07]} exd5 {[%emt 0:01:06]} 9. cxd5 {[%emt 0:00:09]} a6 {[%emt 0:01:29]} 10. a4 {[%emt 0:00:06]} Nbd7 {[%emt 0:03:01]} 11. O-O {[%emt 0:00:14]} Re8 {[%emt 0:01:43]} 12. Bg5 {[%emt 0:06:02]} h6 {[%emt 0:01:16]} 13. Be3 {[%emt 0:00:37]} h5 {[%emt 0:01:32]} 14. Bg5 {[%emt 0:00:08]} Qc7 {[%emt 0:02:54]} 15. Qd2 {[%emt 0:03:28]} Nh7 {[%emt 0:06:07]} 16. Bh4 {[%emt 0:00:45]} c4 {[%emt 0:20:03]} 17. Kh1 {[%emt 0:05:11]} Rb8 {[%emt 0:07:40]} 18. f4 {[%emt 0:27:58]} Bh6 {[%emt 0:03:49]} 19. Qd1 {[%emt 0:12:23]} b5 {[%emt 0:04:31]} 20. axb5 {[%emt 0:00:39]} axb5 {[%emt 0:00:05]} 21. b4 {[%emt 0:04:50]} Ndf6 {[%emt 0:23:33]} 22. h3 {[%emt 0:16:15]} Bd7 {[%emt 0:00:05]} 23. e5 {[%emt 0:04:40]} dxe5 {[%emt 0:00:42]} 24. d6 {[%emt 0:00:09]} Qd8 {[%emt 0:02:00]} 25. fxe5 {[%emt 0:01:16]} Rxe5 {[%emt 0:00:05]} 26. Nge4 {[%emt 0:05:29]} g5 {[%emt 0:06:50]} 27. Nxf6+ {[%emt 0:02:01]} Nxf6 {[%emt 0:00:04]} 28. Bg3 {[%emt 0:02:28]} Re3 {[%emt 0:02:20]} 29. Rxf6 {[%emt 0:00:56]} Qxf6 {[%emt 0:00:13]} 30. Nd5 {[%emt 0:01:05]} Qe6 {[%emt 0:00:15]} 31. Nxe3 {[%emt 0:00:12]} Qxe3 {[%emt 0:00:04]} 32. Bh2 {[%emt 0:00:16]} c3 {[%emt 0:03:16]} 33. Bxh5 {[%emt 0:01:27]} Rc8 {[%emt 0:05:24]} 34. Qc2 {[%emt 0:01:59]} Be6 {[%emt 0:03:38]} 35. Rd1 {[%emt 0:00:44]} Ra8 {[%emt 0:00:00]} 36. Bg1 {[%emt 0:02:33]} Qg3 {[%emt 0:00:59]} 37. Bf3 {[%emt 0:00:51]} Rd8 {[%emt 0:00:53]} 38. Bh2 {[%emt 0:00:24]} Qh4 {[%emt 0:00:05]} 39. Qxc3 {[%emt 0:00:19]} g4 {[%emt 0:00:09]} 40. Bxg4 {[%emt 0:00:36]} Bxg4 {[%emt 0:00:40]} 41. hxg4 {[%emt 0:30:19]} Bf4 {[%emt 0:09:23]} 42. Qh3 {[%emt 0:00:00]} Qg5 {[%emt 0:07:19]} 43. Qh5 {[%emt 0:00:00]} Qf6 {[%emt 0:00:07]} 44. Rf1 {[%emt 0:00:00]} Kg7 {[%emt 0:00:15]} 45. Rxf4 {[%emt 0:00:00]} Qa1+ {[%emt 0:00:09]} 46. Bg1 {[%emt 0:00:03]} Rh8 {[%emt 0:01:20]} 47. Qxh8+ {[%emt 0:00:11]} Kxh8 {[%emt 0:00:04]} 48. d7 {[%emt 0:00:08]} Qa8 {[%emt 0:01:18]} 49. Bb6 {[%emt 0:01:36]} 1-0

[Event "49th Rilton Cup 2019-20"]
[Site "Stockholm"]
[Date "2019.12.29"]
[Round "3.7"]
[White "Kollars, Dmitrij"]
[Black "Lokander, Martin"]
[Result "1-0"]
[ECO "C42"]
[WhiteElo "2584"]
[BlackElo "2397"]
[Annotator "ChessBase"]
[PlyCount "71"]
[EventDate "2019.12.27"]
[EventType "swiss"]
[EventCountry "SWE"]
[SourceTitle "playchess.com"]
[Source "ChessBase"]
[SourceQuality "1"]
[TimeControl "40/5400+30:1800+30"]

1. e4 {[%emt 0:00:42]} e5 {[%emt 0:00:00]} 2. Nf3 {[%emt 0:00:06]} Nf6 {[%emt 0:00:00]} 3. Nxe5 {[%emt 0:01:46]} d6 {[%emt 0:00:14]} 4. Nf3 {[%emt 0:01:53]} Nxe4 {[%emt 0:00:06]} 5. d4 {[%emt 0:01:19]} d5 {[%emt 0:00:07]} 6. Bd3 {[%emt 0:00:09]} Bd6 {[%emt 0:00:18]} 7. O-O {[%emt 0:00:47]} O-O {[%emt 0:00:05]} 8. c4 {[%emt 0:02:07]} c6 {[%emt 0:00:05]} 9. Nc3 {[%emt 0:02:14]} Nxc3 {[%emt 0:00:36]} 10. bxc3 {[%emt 0:00:04]} dxc4 {[%emt 0:00:12]} 11. Bxc4 {[%emt 0:00:08]} Bf5 {[%emt 0:00:27]} 12. Bd3 {[%emt 0:08:44]} Qa5 {[%emt 0:01:14]} 13. c4 {[%emt 0:04:33]} Bxd3 {[%emt 0:03:36]} 14. Qxd3 {[%emt 0:00:04]} Nd7 {[%emt 0:00:46]} 15. c5 {[%emt 0:08:14]} Be7 {[%emt 0:04:48]} 16. Rb1 {[%emt 0:07:35]} Qc7 {[%emt 0:10:55]} 17. g3 {[%emt 0:11:59]} b5 {[%emt 0:10:35]} 18. Bf4 {[%emt 0:04:33]} Qc8 {[%emt 0:05:28]} 19. Rfe1 {[%emt 0:01:43]} Re8 {[%emt 0:00:46]} 20. Re2 {[%emt 0:05:29]} Nf6 {[%emt 0:11:56]} 21. Rbe1 {[%emt 0:00:46]} Bf8 {[%emt 0:09:35]} 22. Rxe8 {[%emt 0:05:08]} Nxe8 {[%emt 0:00:04]} 23. d5 {[%emt 0:02:41]} cxd5 {[%emt 0:02:48]} 24. Rc1 {[%emt 0:00:17]} Nc7 {[%emt 0:05:48]} 25. c6 {[%emt 0:01:50]} Ne6 {[%emt 0:00:39]} 26. Be5 {[%emt 0:00:56]} Qa6 {[%emt 0:03:59]} 27. Qxd5 {[%emt 0:09:54]} Rd8 {[%emt 0:00:38]} 28. Qe4 {[%emt 0:00:50]} Qa4 {[%emt 0:04:19]} 29. Qxa4 {[%emt 0:04:13]} bxa4 {[%emt 0:00:03]} 30. c7 {[%emt 0:00:03]} Rc8 {[%emt 0:00:13]} 31. Rb1 {[%emt 0:00:42]} f6 {[%emt 0:04:47]} 32. Rb8 {[%emt 0:00:28]} Rxc7 {[%emt 0:00:10]} 33. Bxc7 {[%emt 0:00:05]} Nxc7 {[%emt 0:00:04]} 34. Nd4 {[%emt 0:00:47]} Na6 {[%emt 0:01:18]} 35. Ra8 {[%emt 0:00:11]} Nc5 {[%emt 0:00:03]} 36. Rxa7 {[%emt 0:00:27]} 1-0

[Event "49th Rilton Cup 2019-20"]
[Site "Stockholm"]
[Date "2019.12.29"]
[Round "3.8"]
[White "Haug, Johannes"]
[Black "Volkov, Sergey"]
[Result "1/2-1/2"]
[ECO "D15"]
[WhiteElo "2407"]
[BlackElo "2578"]
[Annotator "ChessBase"]
[PlyCount "172"]
[EventDate "2019.12.27"]
[EventType "swiss"]
[EventCountry "SWE"]
[SourceTitle "playchess.com"]
[Source "ChessBase"]
[SourceQuality "1"]
[TimeControl "40/5400+30:1800+30"]

1. d4 {[%emt 0:00:00]} d5 {[%emt 0:00:00]} 2. c4 {[%emt 0:00:00]} c6 {[%emt 0:00:00]} 3. Nf3 {[%emt 0:00:00]} Nf6 {[%emt 0:00:08]} 4. Nc3 {[%emt 0:01:47]} a6 {[%emt 0:00:41]} 5. e3 {[%emt 0:00:25]} Bf5 {[%emt 0:01:21]} 6. Ne5 {[%emt 0:06:09]} Nbd7 {[%emt 0:01:57]} 7. Qb3 {[%emt 0:03:19]} Qc7 {[%emt 0:06:21]} 8. cxd5 {[%emt 0:01:11]} Nxe5 {[%emt 0:00:49]} 9. dxe5 {[%emt 0:01:15]} Nxd5 {[%emt 0:00:07]} 10. Nxd5 {[%emt 0:00:26]} cxd5 {[%emt 0:00:07]} 11. Bd2 {[%emt 0:01:26]} Qxe5 {[%emt 0:07:42]} 12. Bc3 {[%emt 0:06:02]} Qc7 {[%emt 0:10:25]} 13. Qxd5 {[%emt 0:02:24]} e6 {[%emt 0:01:36]} 14. Qc4 {[%emt 0:09:46]} Qxc4 {[%emt 0:08:09]} 15. Bxc4 {[%emt 0:00:25]} Rc8 {[%emt 0:00:13]} 16. Be2 {[%emt 0:04:10]} Be4 {[%emt 0:01:10]} 17. f3 {[%emt 0:06:04]} Bc6 {[%emt 0:02:49]} 18. Kf2 {[%emt 0:04:48]} f6 {[%emt 0:00:38]} 19. f4 {[%emt 0:07:26]} Kf7 {[%emt 0:08:34]} 20. Bh5+ {[%emt 0:03:57]} g6 {[%emt 0:00:16]} 21. Bf3 {[%emt 0:00:05]} Bxf3 {[%emt 0:01:09]} 22. Kxf3 {[%emt 0:00:34]} Be7 {[%emt 0:00:37]} 23. Rhd1 {[%emt 0:04:11]} Rhd8 {[%emt 0:00:29]} 24. Rxd8 {[%emt 0:06:47]} Rxd8 {[%emt 0:02:36]} 25. Rc1 {[%emt 0:00:43]} Rc8 {[%emt 0:00:48]} 26. Bd2 {[%emt 0:06:36]} Rxc1 {[%emt 0:01:20]} 27. Bxc1 {[%emt 0:00:01]} f5 {[%emt 0:00:30]} 28. e4 {[%emt 0:02:28]} h5 {[%emt 0:02:20]} 29. h3 {[%emt 0:08:09]} Ke8 {[%emt 0:03:33]} 30. exf5 {[%emt 0:03:35]} exf5 {[%emt 0:01:41]} 31. Ke2 {[%emt 0:03:42]} Kd7 {[%emt 0:00:58]} 32. Kd3 {[%emt 0:00:04]} Kc6 {[%emt 0:00:23]} 33. Kc4 {[%emt 0:02:00]} b5+ {[%emt 0:00:42]} 34. Kd3 {[%emt 0:00:22]} Kd5 {[%emt 0:01:33]} 35. b3 {[%emt 0:01:16]} Bd6 {[%emt 0:00:56]} 36. Be3 {[%emt 0:01:30]} Ba3 {[%emt 0:01:47]} 37. Bd2 {[%emt 0:00:51]} Be7 {[%emt 0:02:38]} 38. Be3 {[%emt 0:01:21]} Bd8 {[%emt 0:00:27]} 39. Bc1 {[%emt 0:01:01]} a5 {[%emt 0:03:26]} 40. Be3 {[%emt 0:01:50]} a4 {[%emt 0:01:01]} 41. Bc1 {[%emt 0:04:20]} Bb6 {[%emt 0:04:18]} 42. Bd2 {[%emt 0:07:03]} Bc5 {[%emt 0:01:38]} 43. Bc1 {[%emt 0:01:43]} Bg1 {[%emt 0:01:11]} 44. Ba3 {[%emt 0:08:16]} Bf2 {[%emt 0:05:03]} 45. Bc1 {[%emt 0:02:46]} Bb6 {[%emt 0:05:05]} 46. Bd2 {[%emt 0:00:41]} Bd8 {[%emt 0:00:50]} 47. Bc1 {[%emt 0:00:56]} Be7 {[%emt 0:00:34]} 48. Be3 {[%emt 0:02:15]} Ba3 {[%emt 0:00:36]} 49. Bd2 {[%emt 0:00:34]} Kc5 {[%emt 0:01:44]} 50. Be3+ {[%emt 0:00:17]} Kd5 {[%emt 0:00:08]} 51. Bd2 {[%emt 0:00:06]} Bf8 {[%emt 0:00:26]} 52. Bc1 {[%emt 0:01:23]} Bc5 {[%emt 0:01:58]} 53. Bd2 {[%emt 0:00:55]} Bg1 {[%emt 0:00:50]} 54. Bb4 {[%emt 0:02:04]} Bh2 {[%emt 0:01:10]} 55. Bd2 {[%emt 0:00:20]} Kc5 {[%emt 0:01:13]} 56. Kc3 {[%emt 0:00:21]} Bg1 {[%emt 0:00:33]} 57. Bc1 {[%emt 0:00:30]} Bd4+ {[%emt 0:03:04]} 58. Kd3 {[%emt 0:00:03]} Kd5 {[%emt 0:00:18]} 59. Bd2 {[%emt 0:02:31]} Ba7 {[%emt 0:00:25]} 60. Bc1 {[%emt 0:00:23]} Bb8 {[%emt 0:00:10]} 61. Be3 {[%emt 0:00:41]} Bc7 {[%emt 0:00:19]} 62. Bc1 {[%emt 0:00:28]} Kc5 {[%emt 0:01:02]} 63. Ba3+ {[%emt 0:00:24]} Kc6 {[%emt 0:00:05]} 64. Bc1 {[%emt 0:00:32]} Kd5 {[%emt 0:00:06]} 65. Be3 {[%emt 0:00:21]} Bd8 {[%emt 0:00:16]} 66. Bc1 {[%emt 0:00:18]} Bh4 {[%emt 0:00:13]} 67. Be3 {[%emt 0:01:08]} Bg3 {[%emt 0:00:27]} 68. Bc1 {[%emt 0:00:28]} Bf2 {[%emt 0:00:14]} 69. Ke2 {[%emt 0:01:37]} Ba7 {[%emt 0:00:36]} 70. Kd3 {[%emt 0:00:07]} Bg1 {[%emt 0:00:03]} 71. Ba3 {[%emt 0:01:16]} Bb6 {[%emt 0:02:36]} 72. Bc1 {[%emt 0:00:19]} Ba7 {[%emt 0:00:19]} 73. Bd2 {[%emt 0:00:39]} Bc5 {[%emt 0:00:30]} 74. Bc1 {[%emt 0:00:24]} Bf8 {[%emt 0:00:23]} 75. Be3 {[%emt 0:00:35]} Be7 {[%emt 0:00:12]} 76. Bc1 {[%emt 0:00:22]} Bc5 {[%emt 0:00:56]} 77. Bd2 {[%emt 0:00:58]} Ba7 {[%emt 0:00:12]} 78. Bc1 {[%emt 0:00:33]} Bg1 {[%emt 0:00:22]} 79. Ba3 {[%emt 0:00:31]} Bh2 {[%emt 0:00:23]} 80. Bc1 {[%emt 0:00:57]} Bg3 {[%emt 0:00:06]} 81. Be3 {[%emt 0:00:29]} Be1 {[%emt 0:00:05]} 82. Bc1 {[%emt 0:00:09]} Bf2 {[%emt 0:00:16]} 83. Ke2 {[%emt 0:00:44]} Ba7 {[%emt 0:00:31]} 84. Kd3 {[%emt 0:00:05]} Bb8 {[%emt 0:00:09]} 85. Be3 {[%emt 0:00:34]} Bc7 {[%emt 0:00:18]} 86. Bc1 {[%emt 0:00:18]} Bb6 {[%emt 0:01:29] Ke4+} 1/2-1/2

[Event "49th Rilton Cup 2019-20"]
[Site "Stockholm"]
[Date "2019.12.29"]
[Round "3.9"]
[White "Schekachikhin, Maksim"]
[Black "Meshkovs, Nikita"]
[Result "1/2-1/2"]
[ECO "E35"]
[WhiteElo "2389"]
[BlackElo "2558"]
[Annotator "ChessBase"]
[PlyCount "200"]
[EventDate "2019.12.27"]
[EventType "swiss"]
[EventCountry "SWE"]
[SourceTitle "playchess.com"]
[Source "ChessBase"]
[SourceQuality "1"]
[TimeControl "40/5400+30:1800+30"]

1. d4 {[%emt 0:00:00]} Nf6 {[%emt 0:00:00]} 2. c4 {[%emt 0:00:00]} e6 {[%emt 0:00:00]} 3. Nc3 {[%emt 0:00:12]} Bb4 {[%emt 0:00:05]} 4. Qc2 {[%emt 0:00:11]} d5 {[%emt 0:00:15]} 5. cxd5 {[%emt 0:00:22]} exd5 {[%emt 0:00:09]} 6. Bg5 {[%emt 0:00:20]} h6 {[%emt 0:00:11]} 7. Bh4 {[%emt 0:00:06]} g5 {[%emt 0:00:07]} 8. Bg3 {[%emt 0:00:07]} Nc6 {[%emt 0:00:05]} 9. e3 {[%emt 0:00:10]} h5 {[%emt 0:00:05]} 10. Bb5 {[%emt 0:11:43]} Ne4 {[%emt 0:00:54]} 11. f3 {[%emt 0:09:20]} Bxc3+ {[%emt 0:09:56]} 12. bxc3 {[%emt 0:00:39]} Nxg3 {[%emt 0:00:07]} 13. hxg3 {[%emt 0:01:32]} Qe7 {[%emt 0:00:27]} 14. Kf2 {[%emt 0:02:58]} Bd7 {[%emt 0:01:06]} 15. Bxc6 {[%emt 0:11:00]} Bxc6 {[%emt 0:00:41]} 16. Qf5 {[%emt 0:00:08]} Bd7 {[%emt 0:04:50]} 17. Qxd5 {[%emt 0:06:22]} O-O-O {[%emt 0:00:23]} 18. Rb1 {[%emt 0:02:17]} Bc6 {[%emt 0:02:13]} 19. Qf5+ {[%emt 0:01:22]} Kb8 {[%emt 0:00:38]} 20. Ne2 {[%emt 0:02:30]} Rh6 {[%emt 0:08:06]} 21. c4 {[%emt 0:09:27]} Rf6 {[%emt 0:06:20]} 22. Qc5 {[%emt 0:02:37]} Qxc5 {[%emt 0:05:04]} 23. dxc5 {[%emt 0:00:05]} Rf5 {[%emt 0:00:04]} 24. Rxh5 {[%emt 0:09:19]} Rxc5 {[%emt 0:00:16]} 25. Rc1 {[%emt 0:02:29]} a6 {[%emt 0:05:20]} 26. Nd4 {[%emt 0:02:25]} Bb5 {[%emt 0:00:27]} 27. Rd1 {[%emt 0:00:52]} Bd7 {[%emt 0:00:32]} 28. Nb3 {[%emt 0:04:22]} Rxc4 {[%emt 0:03:11]} 29. Rxg5 {[%emt 0:00:10]} b6 {[%emt 0:04:43]} 30. Rd2 {[%emt 0:03:29]} Kc8 {[%emt 0:03:35]} 31. Rgd5 {[%emt 0:01:14]} a5 {[%emt 0:00:13]} 32. Nd4 {[%emt 0:04:18]} Rh8 {[%emt 0:03:22]} 33. g4 {[%emt 0:02:47]} a4 {[%emt 0:01:51]} 34. g5 {[%emt 0:01:15]} a3 {[%emt 0:21:58]} 35. Nc2 {[%emt 0:02:05]} Be6 {[%emt 0:00:01]} 36. R5d3 {[%emt 0:00:10]} Kb7 {[%emt 0:00:43]} 37. Rxa3 {[%emt 0:02:41]} c5 {[%emt 0:00:21]} 38. e4 {[%emt 0:00:24]} b5 {[%emt 0:02:22]} 39. Ne3 {[%emt 0:00:14]} Rc1 {[%emt 0:00:01]} 40. f4 {[%emt 0:04:30]} b4 {[%emt 0:02:35]} 41. Ra4 {[%emt 0:18:29]} Re8 {[%emt 0:16:00]} 42. f5 {[%emt 0:03:47]} Bc8 {[%emt 0:00:01]} 43. Kf3 {[%emt 0:01:14]} Kc6 {[%emt 0:07:06]} 44. Kf4 {[%emt 0:03:08]} Bb7 {[%emt 0:00:00]} 45. e5 {[%emt 0:00:50]} Kb5 {[%emt 0:05:22]} 46. Ra7 {[%emt 0:00:11]} Kb6 {[%emt 0:00:01]} 47. Rxb7+ {[%emt 0:01:35]} Kxb7 {[%emt 0:00:01]} 48. f6 {[%emt 0:01:56]} Re1 {[%emt 0:04:32]} 49. g6 {[%emt 0:02:47]} fxg6 {[%emt 0:00:02]} 50. f7 {[%emt 0:00:09]} g5+ {[%emt 0:00:01]} 51. Kf3 {[%emt 0:01:59]} Rxe3+ {[%emt 0:00:49]} 52. Kxe3 {[%emt 0:00:51]} Rxe5+ {[%emt 0:00:02]} 53. Kf3 {[%emt 0:00:31]} Rf5+ {[%emt 0:00:02]} 54. Kg4 {[%emt 0:00:07]} Rxf7 {[%emt 0:00:04]} 55. Kxg5 {[%emt 0:00:05]} Kc6 {[%emt 0:02:40]} 56. g4 {[%emt 0:00:06]} c4 {[%emt 0:00:04]} 57. Kg6 {[%emt 0:01:02]} c3 {[%emt 0:05:59]} 58. Rc2 {[%emt 0:00:30]} Ra7 {[%emt 0:00:06]} 59. g5 {[%emt 0:01:29]} Rxa2 {[%emt 0:09:57]} 60. Rxa2 {[%emt 0:00:08]} b3 {[%emt 0:00:01]} 61. Ra3 {[%emt 0:01:39]} c2 {[%emt 0:00:10]} 62. Rxb3 {[%emt 0:00:10]} c1=Q {[%emt 0:00:03]} 63. Rf3 {[%emt 0:01:10]} Kd7 {[%emt 0:00:36]} 64. Rf7+ {[%emt 0:00:37]} Ke8 {[%emt 0:00:14]} 65. Rf6 {[%emt 0:00:16]} Qe3 {[%emt 0:00:49]} 66. Kh6 {[%emt 0:00:28]} Ke7 {[%emt 0:00:10]} 67. Kg6 {[%emt 0:00:15]} Qh3 {[%emt 0:02:45]} 68. Rf7+ {[%emt 0:00:55]} Ke6 {[%emt 0:00:03]} 69. Rf6+ {[%emt 0:00:04]} Ke5 {[%emt 0:00:03]} 70. Kg7 {[%emt 0:00:50]} Qh4 {[%emt 0:00:01]} 71. Kg6 {[%emt 0:00:14]} Qh8 {[%emt 0:00:02]} 72. Rf5+ {[%emt 0:00:17]} Ke4 {[%emt 0:00:01]} 73. Rf6 {[%emt 0:00:16]} Qg8+ {[%emt 0:01:47]} 74. Kh6 {[%emt 0:00:14]} Ke5 {[%emt 0:00:01]} 75. Kh5 {[%emt 0:00:27]} Qh7+ {[%emt 0:01:25]} 76. Kg4 {[%emt 0:00:19]} Qh2 {[%emt 0:00:43]} 77. Rf5+ {[%emt 0:00:30]} Ke4 {[%emt 0:00:06]} 78. Rf6 {[%emt 0:00:10]} Qe2+ {[%emt 0:01:40]} 79. Kh4 {[%emt 0:00:29]} Ke5 {[%emt 0:00:02]} 80. Rf8 {[%emt 0:01:16]} Qe1+ {[%emt 0:02:38]} 81. Kh5 {[%emt 0:00:25]} Qd1+ {[%emt 0:00:26]} 82. Kg6 {[%emt 0:00:38]} Qd7 {[%emt 0:00:27]} 83. Rf6 {[%emt 0:00:13]} Qe7 {[%emt 0:00:36]} 84. Kh6 {[%emt 0:00:14]} Qe8 {[%emt 0:00:22]} 85. Rf2 {[%emt 0:01:06]} Qh8+ {[%emt 0:00:19]} 86. Kg6 {[%emt 0:00:05]} Ke4 {[%emt 0:00:29]} 87. Rf6 {[%emt 0:00:32]} Kd4 {[%emt 0:00:42]} 88. Rf4+ {[%emt 0:00:26]} Ke3 {[%emt 0:00:39]} 89. Rf6 {[%emt 0:00:24]} Ke4 {[%emt 0:00:17]} 90. Rf2 {[%emt 0:00:40]} Qd4 {[%emt 0:00:39]} 91. Rf6 {[%emt 0:00:15]} Qd7 {[%emt 0:00:02]} 92. Kh6 {[%emt 0:01:04]} Ke5 {[%emt 0:00:38]} 93. Kg6 {[%emt 0:00:13]} Qh3 {[%emt 0:00:53]} 94. Rf8 {[%emt 0:00:46]} Qh4 {[%emt 0:00:26]} 95. Rf5+ {[%emt 0:00:26]} Ke4 {[%emt 0:00:20]} 96. Rf6 {[%emt 0:00:09]} Qh8 {[%emt 0:00:33]} 97. Rf2 {[%emt 0:00:25]} Qg8+ {[%emt 0:00:42]} 98. Kh6 {[%emt 0:00:14]} Qd8 {[%emt 0:00:29]} 99. Rf6 {[%emt 0:00:18]} Qh8+ {[%emt 0:00:21]} 100. Kg6 {[%emt 0:00:07]} Ke5 {[%emt 0:00:24]} 1/2-1/2